[Event "*** Titled Tuesday Blitz"]
[Site "Chess.com"]
[Date "2019.12.03"]
[Round "9"]
[White "IMTominho"]
[Black "TigrVShlyape"]
[Result "0-1"]
[WhiteElo "2726"]
[BlackElo "2854"]
[TimeControl "180+2"]
[EndTime "15:05:07 PST"]
[Termination "TigrVShlyape won by resignation"]

1. d4 {[%clk 0:02:59.1]} 1... Nf6 {[%clk 0:02:59.5]} 2. c4 {[%clk 0:03:00]} 2...
e6 {[%clk 0:03:00.8]} 3. Nf3 {[%clk 0:03:00.9]} 3... b6 {[%clk 0:03:01.5]} 4. g3
{[%clk 0:03:01.6]} 4... a5 {[%clk 0:03:02.7]} 5. Bg2 {[%clk 0:03:00.4]} 5... Ba6
{[%clk 0:03:03.7]} 6. b3 {[%clk 0:02:45.8]} 6... c6 {[%clk 0:03:04.5]} 7. O-O
{[%clk 0:02:46.4]} 7... d5 {[%clk 0:03:05.1]} 8. Nbd2 {[%clk 0:02:44.5]} 8...
Nbd7 {[%clk 0:03:00.2]} 9. Bb2 {[%clk 0:02:43.7]} 9... Bb4 {[%clk 0:02:58.2]}
10. a3 {[%clk 0:02:43]} 10... Be7 {[%clk 0:02:58.7]} 11. Qc2 {[%clk 0:02:43.8]}
11... O-O {[%clk 0:02:59.5]} 12. e4 {[%clk 0:02:43.7]} 12... Rc8 {[%clk
0:02:56.6]} 13. Rfd1 {[%clk 0:02:33.6]} 13... Qc7 {[%clk 0:02:53.7]} 14. Rac1
{[%clk 0:02:32.9]} 14... Qb8 {[%clk 0:02:54.3]} 15. Ne5 {[%clk 0:02:23.4]} 15...
Nxe5 {[%clk 0:02:53.2]} 16. dxe5 {[%clk 0:02:22.4]} 16... Nd7 {[%clk 0:02:48.7]}
17. f4 {[%clk 0:02:10.5]} 17... Rfd8 {[%clk 0:02:46.6]} 18. Qb1 {[%clk
0:02:08.8]} 18... Nc5 {[%clk 0:02:45.3]} 19. exd5 {[%clk 0:01:49.3]} 19... cxd5
{[%clk 0:02:45.6]} 20. cxd5 {[%clk 0:01:50.5]} 20... Bd3 {[%clk 0:02:36.9]} 21.
Qa1 {[%clk 0:01:46.6]} 21... exd5 {[%clk 0:02:38.1]} 22. Bd4 {[%clk 0:01:39.9]}
22... Bf5 {[%clk 0:02:22.2]} 23. h3 {[%clk 0:01:28.8]} 23... h5 {[%clk
0:02:22.4]} 24. Kh2 {[%clk 0:01:28.2]} 24... Nd3 {[%clk 0:01:53.9]} 25. Rxc8
{[%clk 0:01:27.9]} 25... Qxc8 {[%clk 0:01:55.1]} 26. Nf3 {[%clk 0:01:24.4]}
26... h4 {[%clk 0:01:51.4]} 27. g4 {[%clk 0:01:21.3]} 27... Be4 {[%clk
0:01:52.3]} 28. f5 {[%clk 0:01:16.6]} 28... Nf4 {[%clk 0:01:52.4]} 29. Rc1
{[%clk 0:01:04.8]} 29... Qa6 {[%clk 0:01:50.2]} 30. Bf1 {[%clk 0:01:02.2]} 30...
Bd3 {[%clk 0:01:42.7]} 31. Rd1 {[%clk 0:00:21]} 31... Bxf1 {[%clk 0:01:39.7]}
32. Rxf1 {[%clk 0:00:21.7]} 32... Rc8 {[%clk 0:01:40.9]} 33. Rf2 {[%clk
0:00:22.5]} 33... Qd3 {[%clk 0:01:38.9]} 34. e6 {[%clk 0:00:22.9]} 34... f6
{[%clk 0:01:38.2]} 35. Qf1 {[%clk 0:00:22.1]} 35... Qe4 {[%clk 0:01:37.7]} 36.
Bxb6 {[%clk 0:00:20.3]} 36... Bd6 {[%clk 0:01:38.8]} 37. Kg1 {[%clk 0:00:18.3]}
37... Rc3 {[%clk 0:01:32.3]} 38. b4 {[%clk 0:00:16.6]} 38... Rb3 {[%clk
0:01:16.5]} 39. Nd2 {[%clk 0:00:13.4]} 39... Rg3+ {[%clk 0:01:17.1]} 0-1

[Event "*** Titled Tuesday Blitz"]
[Site "Chess.com"]
[Date "2019.12.03"]
[Round "9"]
[White "Denis_Palkovich"]
[Black "BvsN"]
[Result "1-0"]
[WhiteElo "2271"]
[BlackElo "2361"]
[TimeControl "180+2"]
[EndTime "15:05:52 PST"]
[Termination "Denis_Palkovich won by resignation"]

1. d4 {[%clk 0:02:56.2]} 1... d5 {[%clk 0:02:59.5]} 2. Bf4 {[%clk 0:02:55.9]}
2... c5 {[%clk 0:02:59.8]} 3. e3 {[%clk 0:02:56.3]} 3... Nc6 {[%clk 0:02:59.6]}
4. c3 {[%clk 0:02:56.3]} 4... Nf6 {[%clk 0:02:59.5]} 5. Nd2 {[%clk 0:02:56.1]}
5... Bf5 {[%clk 0:03:00.1]} 6. Ngf3 {[%clk 0:02:55.4]} 6... e6 {[%clk
0:02:41.9]} 7. Qb3 {[%clk 0:02:54.6]} 7... Qc8 {[%clk 0:02:41.8]} 8. Nh4 {[%clk
0:02:49.7]} 8... Be4 {[%clk 0:02:40.9]} 9. f3 {[%clk 0:02:49.1]} 9... c4 {[%clk
0:02:15.6]} 10. Qd1 {[%clk 0:02:44.8]} 10... Bd3 {[%clk 0:02:02.3]} 11. Bxd3
{[%clk 0:02:39.4]} 11... cxd3 {[%clk 0:02:03.5]} 12. g4 {[%clk 0:02:29.5]} 12...
b6 {[%clk 0:01:35.1]} 13. O-O {[%clk 0:02:22.4]} 13... h6 {[%clk 0:01:31.1]} 14.
Ng2 {[%clk 0:02:23]} 14... g5 {[%clk 0:01:29]} 15. Bg3 {[%clk 0:02:21.7]} 15...
h5 {[%clk 0:01:30.4]} 16. h3 {[%clk 0:02:19.9]} 16... hxg4 {[%clk 0:01:30.7]}
17. hxg4 {[%clk 0:02:02.6]} 17... Be7 {[%clk 0:01:29.5]} 18. Ne1 {[%clk
0:01:52.6]} 18... Qd7 {[%clk 0:01:06.3]} 19. Nxd3 {[%clk 0:01:52.9]} 19... Bd6
{[%clk 0:01:07.8]} 20. Ne5 {[%clk 0:01:45.3]} 20... Qc7 {[%clk 0:01:03.1]} 21.
Qa4 {[%clk 0:01:38.5]} 21... Bxe5 {[%clk 0:01:02.2]} 22. Bxe5 {[%clk 0:01:37.2]}
22... b5 {[%clk 0:00:43.1]} 23. Qxb5 {[%clk 0:01:22]} 23... Qd7 {[%clk
0:00:32.2]} 24. Bxf6 {[%clk 0:01:20.5]} 24... Rh6 {[%clk 0:00:33.4]} 25. Bxg5
{[%clk 0:01:19.8]} 25... Rg6 {[%clk 0:00:34.6]} 26. Bf4 {[%clk 0:01:15.2]} 26...
Rb8 {[%clk 0:00:36]} 27. Qe2 {[%clk 0:01:15.2]} 27... Rxb2 {[%clk 0:00:35.8]}
28. Rfb1 {[%clk 0:01:07.8]} 28... Rc2 {[%clk 0:00:36.5]} 29. Qd3 {[%clk
0:01:08.9]} 29... e5 {[%clk 0:00:32.9]} 30. Qxc2 {[%clk 0:00:50.4]} 30... exf4
{[%clk 0:00:31.3]} 31. Nf1 {[%clk 0:00:44.7]} 31... f5 {[%clk 0:00:29.6]} 32.
exf4 {[%clk 0:00:24.5]} 32... Kf7 {[%clk 0:00:29.3]} 33. g5 {[%clk 0:00:23.1]}
33... Qd6 {[%clk 0:00:24.9]} 34. Rb7+ {[%clk 0:00:23.3]} 34... Ne7 {[%clk
0:00:22.8]} 35. Qxf5+ {[%clk 0:00:22.8]} 35... Kg8 {[%clk 0:00:22.7]} 36. Rxe7
{[%clk 0:00:19.8]} 36... Rg7 {[%clk 0:00:21.1]} 37. Re8+ {[%clk 0:00:17.7]} 1-0

[Event "*** Titled Tuesday Blitz"]
[Site "Chess.com"]
[Date "2019.12.03"]
[Round "9"]
[White "Kosche007"]
[Black "vovachesss"]
[Result "1/2-1/2"]
[WhiteElo "2321"]
[BlackElo "2535"]
[TimeControl "180+2"]
[EndTime "15:06:00 PST"]
[Termination "Game drawn by agreement"]

1. e4 {[%clk 0:03:01.9]} 1... c6 {[%clk 0:02:52]} 2. d4 {[%clk 0:03:02.1]} 2...
d5 {[%clk 0:02:53.6]} 3. exd5 {[%clk 0:03:02.9]} 3... cxd5 {[%clk 0:02:54.9]} 4.
Bd3 {[%clk 0:03:04.5]} 4... Nf6 {[%clk 0:02:56.3]} 5. c3 {[%clk 0:03:03.8]} 5...
Nc6 {[%clk 0:02:57.8]} 6. h3 {[%clk 0:03:03.9]} 6... g6 {[%clk 0:02:57.3]} 7.
Nf3 {[%clk 0:03:04.5]} 7... Bg7 {[%clk 0:02:58.7]} 8. Bf4 {[%clk 0:03:05]} 8...
O-O {[%clk 0:02:59.7]} 9. O-O {[%clk 0:03:05.6]} 9... Bf5 {[%clk 0:03:01]} 10.
Bxf5 {[%clk 0:03:05.4]} 10... gxf5 {[%clk 0:03:02.9]} 11. Ne5 {[%clk 0:03:05.9]}
11... e6 {[%clk 0:03:03.9]} 12. Nd2 {[%clk 0:03:05.9]} 12... Ne4 {[%clk
0:02:57.9]} 13. f3 {[%clk 0:03:01.1]} 13... Nxe5 {[%clk 0:02:54.5]} 14. Bxe5
{[%clk 0:03:00.2]} 14... Bxe5 {[%clk 0:02:55.3]} 15. dxe5 {[%clk 0:03:00]} 15...
Qb6+ {[%clk 0:02:55.6]} 16. Kh2 {[%clk 0:02:58.9]} 16... Nc5 {[%clk 0:02:50.7]}
17. Nb3 {[%clk 0:02:58.9]} 17... Nd7 {[%clk 0:02:50.6]} 18. Qd4 {[%clk
0:02:58.3]} 18... Qc7 {[%clk 0:02:51.8]} 19. Rae1 {[%clk 0:02:53.8]} 19... Kh8
{[%clk 0:02:51.1]} 20. g4 {[%clk 0:02:53.8]} 20... f6 {[%clk 0:02:42.4]} 21. f4
{[%clk 0:02:41.9]} 21... fxg4 {[%clk 0:02:41.7]} 22. hxg4 {[%clk 0:02:42.4]}
22... fxe5 {[%clk 0:02:16.4]} 23. fxe5 {[%clk 0:02:24]} 23... Rxf1 {[%clk
0:02:18.3]} 24. Rxf1 {[%clk 0:02:24.8]} 24... Qxe5+ {[%clk 0:02:19.4]} 25. Qxe5+
{[%clk 0:02:13.9]} 25... Nxe5 {[%clk 0:02:21.3]} 26. Kh3 {[%clk 0:02:09]} 26...
Re8 {[%clk 0:02:04.9]} 27. Nd4 {[%clk 0:02:05.8]} 27... Kg7 {[%clk 0:02:03.7]}
28. Re1 {[%clk 0:02:00]} 28... Ng6 {[%clk 0:02:03.5]} 29. Kg3 {[%clk 0:01:54.9]}
29... e5 {[%clk 0:01:52.5]} 30. Nf5+ {[%clk 0:01:54.7]} 30... Kf6 {[%clk
0:01:48.2]} 31. Rf1 {[%clk 0:01:49.7]} 31... Nf4 {[%clk 0:01:38.2]} 32. Rh1
{[%clk 0:01:40.4]} 32... h5 {[%clk 0:01:38.3]} 33. Ne3 {[%clk 0:01:23.8]} 33...
Rg8 {[%clk 0:01:31.3]} 34. Kf3 {[%clk 0:01:19.9]} 34... hxg4+ {[%clk 0:01:28.1]}
35. Nxg4+ {[%clk 0:01:20.8]} 35... Ke6 {[%clk 0:01:29]} 36. Rh7 {[%clk
0:01:11.5]} 36... Nd3 {[%clk 0:01:04]} 37. Rh6+ {[%clk 0:00:39.3]} 37... Kf5
{[%clk 0:00:41.3]} 38. Nf6 {[%clk 0:00:27.8]} 38... e4+ {[%clk 0:00:37.7]} 39.
Ke2 {[%clk 0:00:28.9]} 39... Rg2+ {[%clk 0:00:38.4]} 40. Ke3 {[%clk 0:00:27.1]}
40... Kg5 {[%clk 0:00:30]} 41. Ng8 {[%clk 0:00:26.1]} 41... Rxb2 {[%clk
0:00:12.6]} 1/2-1/2

[Event "*** Titled Tuesday Blitz"]
[Site "Chess.com"]
[Date "2019.12.03"]
[Round "9"]
[White "misha_melnichuk"]
[Black "goldenspine"]
[Result "1-0"]
[WhiteElo "2482"]
[BlackElo "2325"]
[TimeControl "180+2"]
[EndTime "15:06:08 PST"]
[Termination "misha_melnichuk won by resignation"]

1. Nf3 {[%clk 0:03:01.9]} 1... Nf6 {[%clk 0:03:00.7]} 2. d4 {[%clk 0:03:03.4]}
2... g6 {[%clk 0:03:01.8]} 3. c4 {[%clk 0:03:04.9]} 3... Bg7 {[%clk 0:03:02.2]}
4. Nc3 {[%clk 0:03:06.8]} 4... d5 {[%clk 0:03:03]} 5. Bg5 {[%clk 0:03:05.6]}
5... Ne4 {[%clk 0:03:01.3]} 6. Bf4 {[%clk 0:03:07.2]} 6... Nxc3 {[%clk
0:02:55.3]} 7. bxc3 {[%clk 0:03:09.1]} 7... c5 {[%clk 0:02:54.6]} 8. e3 {[%clk
0:03:09.4]} 8... Nc6 {[%clk 0:02:51.4]} 9. Be2 {[%clk 0:03:03.2]} 9... O-O
{[%clk 0:02:39.8]} 10. O-O {[%clk 0:03:03.7]} 10... cxd4 {[%clk 0:02:33.3]} 11.
cxd4 {[%clk 0:03:02.2]} 11... Bf5 {[%clk 0:02:26.5]} 12. cxd5 {[%clk 0:02:47.7]}
12... Qxd5 {[%clk 0:02:27]} 13. Qa4 {[%clk 0:02:49]} 13... Qa5 {[%clk
0:02:00.2]} 14. Qxa5 {[%clk 0:02:43.8]} 14... Nxa5 {[%clk 0:02:02.1]} 15. Rfc1
{[%clk 0:02:38.8]} 15... Rac8 {[%clk 0:02:02.2]} 16. Ne5 {[%clk 0:02:29.9]}
16... a6 {[%clk 0:01:40.7]} 17. Bf3 {[%clk 0:02:24.2]} 17... b5 {[%clk
0:01:39.9]} 18. g4 {[%clk 0:01:59.8]} 18... Bc2 {[%clk 0:01:38.2]} 19. Nd7
{[%clk 0:01:51.7]} 19... Rfd8 {[%clk 0:01:31.4]} 20. Nc5 {[%clk 0:01:49.4]}
20... e5 {[%clk 0:01:08.7]} 21. Bg3 {[%clk 0:01:33.5]} 21... exd4 {[%clk
0:01:00.1]} 22. Rxc2 {[%clk 0:01:20.3]} 22... d3 {[%clk 0:01:00.7]} 23. Rac1
{[%clk 0:01:20.8]} 23... dxc2 {[%clk 0:01:01.2]} 24. Rxc2 {[%clk 0:01:22.7]}
24... Bf8 {[%clk 0:00:58]} 25. Bh4 {[%clk 0:00:14.2]} 25... Re8 {[%clk
0:00:46.3]} 26. Nd7 {[%clk 0:00:12.4]} 26... Rxc2 {[%clk 0:00:41.3]} 27. Nf6+
{[%clk 0:00:14]} 27... Kh8 {[%clk 0:00:41.8]} 28. Nxe8 {[%clk 0:00:15.9]} 28...
Bg7 {[%clk 0:00:41.7]} 29. Bd8 {[%clk 0:00:12.4]} 29... Rxa2 {[%clk 0:00:41.5]}
30. Bd5 {[%clk 0:00:09.1]} 30... Ra1+ {[%clk 0:00:38.1]} 31. Kg2 {[%clk
0:00:10.7]} 31... Nc4 {[%clk 0:00:35.3]} 32. Bxf7 {[%clk 0:00:09.8]} 32... a5
{[%clk 0:00:36.4]} 33. g5 {[%clk 0:00:06.4]} 33... a4 {[%clk 0:00:37.3]} 34.
Nxg7 {[%clk 0:00:06.6]} 34... Kxg7 {[%clk 0:00:38.3]} 35. Bxc4 {[%clk
0:00:06.8]} 35... bxc4 {[%clk 0:00:37.9]} 36. Bf6+ {[%clk 0:00:08.1]} 36... Kf7
{[%clk 0:00:38.7]} 37. Bxa1 {[%clk 0:00:10]} 37... Ke6 {[%clk 0:00:35.8]} 38.
Kf3 {[%clk 0:00:07.7]} 38... Kd5 {[%clk 0:00:35.8]} 39. e4+ {[%clk 0:00:09.2]}
39... Kc5 {[%clk 0:00:35.9]} 40. Ke3 {[%clk 0:00:10.6]} 40... Kb4 {[%clk
0:00:37.1]} 41. Kd4 {[%clk 0:00:10]} 41... Kb3 {[%clk 0:00:38.3]} 42. Bc3 {[%clk
0:00:11.5]} 42... a3 {[%clk 0:00:39]} 43. e5 {[%clk 0:00:13.1]} 43... a2 {[%clk
0:00:40]} 44. e6 {[%clk 0:00:15]} 1-0

[Event "*** Titled Tuesday Blitz"]
[Site "Chess.com"]
[Date "2019.12.03"]
[Round "9"]
[White "Satscho"]
[Black "HrvojeZagreb"]
[Result "1-0"]
[WhiteElo "2342"]
[BlackElo "2218"]
[TimeControl "180+2"]
[EndTime "15:06:10 PST"]
[Termination "Satscho won by resignation"]

1. e4 {[%clk 0:03:01.9]} 1... e6 {[%clk 0:03:00.7]} 2. d3 {[%clk 0:03:02.1]}
2... d5 {[%clk 0:03:01.7]} 3. Nd2 {[%clk 0:03:03.7]} 3... c5 {[%clk 0:03:02.6]}
4. g3 {[%clk 0:03:04.8]} 4... Bd6 {[%clk 0:03:03.8]} 5. Bg2 {[%clk 0:03:06.2]}
5... Ne7 {[%clk 0:03:05.1]} 6. Ngf3 {[%clk 0:03:04.7]} 6... O-O {[%clk
0:03:05.8]} 7. O-O {[%clk 0:03:05.5]} 7... Bc7 {[%clk 0:03:05.7]} 8. Re1 {[%clk
0:03:06]} 8... b5 {[%clk 0:03:06.6]} 9. e5 {[%clk 0:03:03.5]} 9... a5 {[%clk
0:03:06.8]} 10. c4 {[%clk 0:02:58.9]} 10... bxc4 {[%clk 0:02:34.4]} 11. dxc4
{[%clk 0:03:00.8]} 11... Bb7 {[%clk 0:02:35.2]} 12. Qc2 {[%clk 0:02:52.2]} 12...
Ng6 {[%clk 0:02:18.4]} 13. cxd5 {[%clk 0:02:31.1]} 13... Bxd5 {[%clk 0:02:16.2]}
14. h4 {[%clk 0:02:26]} 14... Nd7 {[%clk 0:02:06.9]} 15. Nc4 {[%clk 0:01:56.1]}
15... Rb8 {[%clk 0:01:36.4]} 16. h5 {[%clk 0:01:43.5]} 16... Bxc4 {[%clk
0:01:19.1]} 17. hxg6 {[%clk 0:01:40.7]} 17... Bd5 {[%clk 0:01:17.4]} 18. gxf7+
{[%clk 0:01:35.2]} 18... Rxf7 {[%clk 0:01:15.5]} 19. Ng5 {[%clk 0:01:36.2]}
19... Nxe5 {[%clk 0:00:55.8]} 20. Qxh7+ {[%clk 0:01:05.6]} 20... Kf8 {[%clk
0:00:55]} 21. Nxf7 {[%clk 0:00:56.2]} 21... Nxf7 {[%clk 0:00:47.6]} 22. Bxd5
{[%clk 0:00:55.2]} 22... Qxd5 {[%clk 0:00:37.7]} 23. Qe4 {[%clk 0:00:55]} 23...
Be5 {[%clk 0:00:12]} 24. Qxd5 {[%clk 0:00:47.5]} 24... exd5 {[%clk 0:00:13.9]}
25. Rb1 {[%clk 0:00:35]} 25... a4 {[%clk 0:00:14.5]} 26. Bf4 {[%clk 0:00:30.3]}
26... Rxb2 {[%clk 0:00:07.8]} 27. Bxe5 {[%clk 0:00:21.1]} 27... Rxb1 {[%clk
0:00:09.7]} 28. Bxg7+ {[%clk 0:00:22.7]} 28... Kxg7 {[%clk 0:00:10.6]} 29. Rxb1
{[%clk 0:00:24.6]} 29... Kf6 {[%clk 0:00:11.4]} 30. Rb5 {[%clk 0:00:22.9]} 30...
Ke5 {[%clk 0:00:10.1]} 31. Rxc5 {[%clk 0:00:24.3]} 31... Kd4 {[%clk 0:00:10.8]}
32. Rc7 {[%clk 0:00:24.3]} 32... Nd6 {[%clk 0:00:11.7]} 33. Kf1 {[%clk
0:00:25.5]} 33... Nc4 {[%clk 0:00:12.8]} 34. g4 {[%clk 0:00:24.9]} 34... Ne5
{[%clk 0:00:12.3]} 35. g5 {[%clk 0:00:24.9]} 35... Kd3 {[%clk 0:00:13.6]} 36.
Re7 {[%clk 0:00:24.9]} 36... Ng6 {[%clk 0:00:12]} 37. Re3+ {[%clk 0:00:24.9]}
37... Kc2 {[%clk 0:00:12.1]} 38. Re6 {[%clk 0:00:26]} 38... Nf4 {[%clk 0:00:13]}
39. Rf6 {[%clk 0:00:27.7]} 39... Nh5 {[%clk 0:00:12.6]} 40. Rd6 {[%clk
0:00:27.8]} 40... Nf4 {[%clk 0:00:12.8]} 41. g6 {[%clk 0:00:29.1]} 41... Kb2
{[%clk 0:00:12.9]} 42. g7 {[%clk 0:00:29.7]} 42... Kxa2 {[%clk 0:00:14.1]} 43.
g8=Q {[%clk 0:00:31.3]} 43... a3 {[%clk 0:00:15.6]} 44. Rxd5 {[%clk 0:00:32.4]}
44... Nxd5 {[%clk 0:00:16.8]} 45. Qxd5+ {[%clk 0:00:34.3]} 45... Kb2 {[%clk
0:00:18.3]} 46. f4 {[%clk 0:00:35.7]} 46... a2 {[%clk 0:00:19.7]} 47. Qxa2+
{[%clk 0:00:37.3]} 47... Kxa2 {[%clk 0:00:21.1]} 48. f5 {[%clk 0:00:39.2]} 48...
Kb3 {[%clk 0:00:22.9]} 49. f6 {[%clk 0:00:41.1]} 49... Kc4 {[%clk 0:00:24.7]}
50. f7 {[%clk 0:00:43]} 50... Kd5 {[%clk 0:00:26.5]} 51. f8=Q {[%clk 0:00:44.9]}
1-0

[Event "*** Titled Tuesday Blitz"]
[Site "Chess.com"]
[Date "2019.12.03"]
[Round "9"]
[White "Chesswizard_2007"]
[Black "pulvettd"]
[Result "0-1"]
[WhiteElo "2443"]
[BlackElo "2623"]
[TimeControl "180+2"]
[EndTime "15:06:11 PST"]
[Termination "pulvettd won by resignation"]

1. d4 {[%clk 0:03:01.9]} 1... d5 {[%clk 0:02:59.9]} 2. c4 {[%clk 0:03:02]} 2...
c6 {[%clk 0:03:00]} 3. Nf3 {[%clk 0:03:02.2]} 3... Nf6 {[%clk 0:02:59.9]} 4. e3
{[%clk 0:03:02.7]} 4... Bf5 {[%clk 0:02:59.4]} 5. Nc3 {[%clk 0:02:57.9]} 5... a6
{[%clk 0:03:00.4]} 6. Nh4 {[%clk 0:02:57.2]} 6... Bc8 {[%clk 0:02:48.6]} 7. Bd3
{[%clk 0:02:56.9]} 7... e6 {[%clk 0:02:43.7]} 8. O-O {[%clk 0:02:54.8]} 8...
Nbd7 {[%clk 0:02:41.7]} 9. Nf3 {[%clk 0:02:54.7]} 9... dxc4 {[%clk 0:02:41.6]}
10. Bxc4 {[%clk 0:02:55.1]} 10... b5 {[%clk 0:02:43.5]} 11. Bb3 {[%clk
0:02:53.1]} 11... c5 {[%clk 0:02:43.9]} 12. d5 {[%clk 0:02:49.6]} 12... c4
{[%clk 0:02:44.9]} 13. dxe6 {[%clk 0:02:41.9]} 13... fxe6 {[%clk 0:02:39.6]} 14.
Bc2 {[%clk 0:02:42.4]} 14... Bb7 {[%clk 0:02:39.1]} 15. Nd4 {[%clk 0:02:35.9]}
15... Nc5 {[%clk 0:02:36.1]} 16. e4 {[%clk 0:02:21.8]} 16... e5 {[%clk 0:02:23]}
17. Nf3 {[%clk 0:01:55.1]} 17... Bd6 {[%clk 0:02:18.8]} 18. Bg5 {[%clk
0:01:46.4]} 18... O-O {[%clk 0:02:18.2]} 19. Qe2 {[%clk 0:01:44.7]} 19... Ne6
{[%clk 0:02:14.2]} 20. Be3 {[%clk 0:01:35.9]} 20... Nd4 {[%clk 0:02:08.9]} 21.
Nxd4 {[%clk 0:00:45.2]} 21... exd4 {[%clk 0:02:10.8]} 22. Bxd4 {[%clk
0:00:47.1]} 22... Bxh2+ {[%clk 0:02:09.2]} 23. Kxh2 {[%clk 0:00:49]} 23... Qxd4
{[%clk 0:02:09.6]} 24. Rad1 {[%clk 0:00:49.5]} 24... Qc5 {[%clk 0:02:02.1]} 25.
e5 {[%clk 0:00:45.3]} 25... Qxe5+ {[%clk 0:02:02.4]} 26. Qxe5 {[%clk 0:00:47.2]}
26... Ng4+ {[%clk 0:02:03.1]} 27. Kg1 {[%clk 0:00:40.9]} 27... Nxe5 {[%clk
0:02:05]} 28. Rfe1 {[%clk 0:00:42.4]} 28... Rae8 {[%clk 0:02:02.3]} 29. Re3
{[%clk 0:00:29.8]} 29... Ng4 {[%clk 0:01:57.5]} 30. Rxe8 {[%clk 0:00:18.8]}
30... Rxe8 {[%clk 0:01:59.4]} 31. Bf5 {[%clk 0:00:17.6]} 31... Nf6 {[%clk
0:01:55.1]} 32. a4 {[%clk 0:00:18]} 32... b4 {[%clk 0:01:43.8]} 33. Nb1 {[%clk
0:00:18]} 33... Re2 {[%clk 0:01:39.5]} 34. Nd2 {[%clk 0:00:14.6]} 34... c3
{[%clk 0:01:36.8]} 35. bxc3 {[%clk 0:00:15.7]} 35... bxc3 {[%clk 0:01:38.2]} 36.
Nc4 {[%clk 0:00:11.9]} 36... Be4 {[%clk 0:01:28.3]} 37. Bxe4 {[%clk 0:00:06.1]}
37... Nxe4 {[%clk 0:01:30.2]} 38. Ne5 {[%clk 0:00:05]} 38... h6 {[%clk
0:01:22.7]} 39. Rc1 {[%clk 0:00:02.8]} 39... c2 {[%clk 0:01:10.2]} 40. Nd3
{[%clk 0:00:02.8]} 40... Rd2 {[%clk 0:01:10.1]} 41. Nb2 {[%clk 0:00:04.5]} 41...
Nc5 {[%clk 0:01:08.1]} 42. Kf1 {[%clk 0:00:04.5]} 42... Nb3 {[%clk 0:01:08.8]}
43. Ke1 {[%clk 0:00:06.2]} 43... h5 {[%clk 0:01:06]} 44. Nc4 {[%clk 0:00:05.9]}
44... Rxf2 {[%clk 0:01:01.2]} 45. Kxf2 {[%clk 0:00:07.3]} 45... Nxc1 {[%clk
0:01:02.7]} 46. Na3 {[%clk 0:00:06.8]} 46... Nd3+ {[%clk 0:01:03.1]} 47. Kg3
{[%clk 0:00:06.3]} 47... c1=Q {[%clk 0:01:05]} 48. Kh4 {[%clk 0:00:08.2]} 48...
Qxa3 {[%clk 0:01:02.1]} 49. Kg5 {[%clk 0:00:10.1]} 49... Qc5+ {[%clk 0:01:00.1]}
50. Kh4 {[%clk 0:00:10.2]} 50... Qf2+ {[%clk 0:01:00.2]} 51. Kh3 {[%clk
0:00:12.1]} 51... Nf4+ {[%clk 0:00:59.8]} 0-1

[Event "*** Titled Tuesday Blitz"]
[Site "Chess.com"]
[Date "2019.12.03"]
[Round "9"]
[White "ElGasanov"]
[Black "MatthewG-p4p"]
[Result "0-1"]
[WhiteElo "2682"]
[BlackElo "2789"]
[TimeControl "180+2"]
[EndTime "15:06:13 PST"]
[Termination "MatthewG-p4p won by resignation"]

1. d4 {[%clk 0:03:01.9]} 1... Nf6 {[%clk 0:03:00.1]} 2. c4 {[%clk 0:03:01]} 2...
c5 {[%clk 0:03:01.3]} 3. d5 {[%clk 0:02:59.8]} 3... e6 {[%clk 0:03:02.5]} 4. Nf3
{[%clk 0:03:00.9]} 4... exd5 {[%clk 0:03:04.2]} 5. cxd5 {[%clk 0:03:00.3]} 5...
d6 {[%clk 0:03:06.1]} 6. e4 {[%clk 0:03:01.9]} 6... g6 {[%clk 0:03:07.7]} 7. Bd3
{[%clk 0:03:02.6]} 7... Bg7 {[%clk 0:03:09]} 8. O-O {[%clk 0:03:03.7]} 8... O-O
{[%clk 0:03:10.6]} 9. Re1 {[%clk 0:03:04.7]} 9... Re8 {[%clk 0:03:12]} 10. h3
{[%clk 0:03:03.6]} 10... a6 {[%clk 0:03:11.7]} 11. a4 {[%clk 0:03:03]} 11...
Nbd7 {[%clk 0:03:12.9]} 12. Nc3 {[%clk 0:03:02]} 12... Rb8 {[%clk 0:03:13.2]}
13. Bf4 {[%clk 0:03:02]} 13... Qc7 {[%clk 0:03:07.3]} 14. Qd2 {[%clk 0:02:32.1]}
14... c4 {[%clk 0:03:02.5]} 15. Bc2 {[%clk 0:02:23.5]} 15... Nh5 {[%clk
0:02:56.3]} 16. Be3 {[%clk 0:02:19.8]} 16... Nc5 {[%clk 0:02:33.6]} 17. Bd4
{[%clk 0:01:56.5]} 17... Bxd4 {[%clk 0:02:19.3]} 18. Qxd4 {[%clk 0:01:57.5]}
18... b5 {[%clk 0:02:17.3]} 19. axb5 {[%clk 0:01:58.1]} 19... axb5 {[%clk
0:02:19.2]} 20. e5 {[%clk 0:01:52.3]} 20... Bd7 {[%clk 0:02:13.1]} 21. g4 {[%clk
0:01:28.1]} 21... Ng7 {[%clk 0:02:11.6]} 22. Qf4 {[%clk 0:01:10.4]} 22... dxe5
{[%clk 0:01:50.7]} 23. Nxe5 {[%clk 0:01:10.1]} 23... f6 {[%clk 0:01:20.7]} 24.
Qxf6 {[%clk 0:00:55.6]} 24... Rf8 {[%clk 0:01:21]} 25. Qh4 {[%clk 0:00:36.7]}
25... Qb6 {[%clk 0:01:03.3]} 26. Qe7 {[%clk 0:00:32.3]} 26... Rbe8 {[%clk
0:00:58.3]} 27. Qh4 {[%clk 0:00:29.1]} 27... b4 {[%clk 0:00:53.7]} 28. Nxd7
{[%clk 0:00:29.8]} 28... Nxd7 {[%clk 0:00:53.4]} 29. Ne4 {[%clk 0:00:30.5]}
29... Ne5 {[%clk 0:00:41.9]} 30. Ng5 {[%clk 0:00:23.2]} 30... h5 {[%clk
0:00:33.5]} 31. Re3 {[%clk 0:00:23.8]} 31... b3 {[%clk 0:00:29.6]} 32. Be4
{[%clk 0:00:24.7]} 32... Qf6 {[%clk 0:00:20.1]} 33. Rae1 {[%clk 0:00:19]} 33...
Nd7 {[%clk 0:00:16]} 34. Rf3 {[%clk 0:00:16.1]} 34... Qxb2 {[%clk 0:00:16.1]}
35. Rf1 {[%clk 0:00:14.2]} 35... Rxf3 {[%clk 0:00:16.1]} 36. Bxf3 {[%clk
0:00:15.4]} 36... Qf6 {[%clk 0:00:16.4]} 37. gxh5 {[%clk 0:00:16]} 37... Re5
{[%clk 0:00:17.1]} 38. Bg4 {[%clk 0:00:13.6]} 38... Qxg5 {[%clk 0:00:17.7]} 39.
Qxg5 {[%clk 0:00:13]} 39... Rxg5 {[%clk 0:00:19.6]} 40. f4 {[%clk 0:00:14.3]}
40... Rxg4+ {[%clk 0:00:21.3]} 41. hxg4 {[%clk 0:00:15.7]} 41... c3 {[%clk
0:00:23.2]} 42. h6 {[%clk 0:00:16]} 42... c2 {[%clk 0:00:23.9]} 43. hxg7 {[%clk
0:00:15.7]} 43... b2 {[%clk 0:00:25.3]} 44. f5 {[%clk 0:00:16.5]} 44... c1=Q
{[%clk 0:00:26.7]} 0-1